fUST/lending_fUST_20241106
["ID","MTS","AMOUNT","RATE_DAILY","PERIOD"]
[341442526,1730886660384,-500.0,0.00029041,2]
[341442527,1730886660394,-500.0,0.00029041,2]
[341442528,1730886660403,-500.0,0.00029041,2]
[341442529,1730886660413,-500.0,0.00029041,2]
[341442530,1730886660422,-500.0,0.00029041,2]
[341442531,1730886660517,-500.0,0.00029041,2]
[341442532,1730886660539,-500.0,0.00029041,2]
[341442533,1730886660550,-500.0,0.00029041,2]
[341442534,1730886660560,-505.65366633,0.00029041,2]
[341442535,1730886660570,-500.0,0.00029041,2]
[341442536,1730886660579,-500.0,0.00029041,2]
[341442537,1730886660587,-500.0,0.00029041,2]
[341442538,1730886660596,-500.0,0.00029041,2]
[341442539,1730886660605,-500.0,0.00029041,2]
[341442540,1730886660615,-151.0,0.00029041,7]
[341442541,1730886660625,-500.0,0.00029041,2]
[341442542,1730886660635,-500.0,0.00029041,2]
[341442543,1730886660645,-500.0,0.00029041,2]
[341442544,1730886660655,-500.0,0.00029041,2]
[341442545,1730886660664,-151.0,0.00029041,7]
[341442546,1730886660672,-500.0,0.00029041,2]
[341442547,1730886660682,-500.0,0.00029041,2]
[341442548,1730886660691,-500.0,0.00029041,2]
[341442549,1730886660700,-500.0,0.00029041,2]
[341442550,1730886660709,-500.0,0.00029041,2]
[341442551,1730886660718,-500.0,0.00029041,2]
[341442552,1730886660727,-500.0,0.00029041,2]
[341442553,1730886660737,-500.0,0.00029041,2]
[341442554,1730886660746,-500.0,0.00029041,2]
[341442555,1730886660759,-500.0,0.00029041,2]
[341442556,1730886660769,-500.0,0.00029041,2]
[341442557,1730886660778,-500.0,0.00029041,2]
[341442558,1730886660787,-500.0,0.00029041,2]
[341442559,1730886660797,-522.53524287,0.00029041,2]
[341442560,1730886660807,-500.0,0.00029041,2]
[341442561,1730886660817,-500.0,0.00029041,2]
[341442562,1730886660826,-500.0,0.00029041,2]
[341442563,1730886660834,-500.0,0.00029041,2]
[341442564,1730886660843,-500.0,0.00029041,2]
[341442565,1730886660852,-500.0,0.00029041,2]
[341442566,1730886660862,-500.0,0.00029041,2]
[341442567,1730886660871,-2060.64,0.00029041,2]
[341442568,1730886660880,-500.0,0.00029041,2]
[341442569,1730886660889,-500.0,0.00029041,2]
[341442570,1730886660898,-500.0,0.00029041,2]
[341442571,1730886660907,-500.0,0.00029041,2]
[341442572,1730886660916,-1060.37,0.00029041,2]
[341442573,1730886660926,-936.89,0.00029041,2]
[341442574,1730886660935,-500.0,0.00029041,2]
[341442575,1730886660945,-500.0,0.00029041,2]
[341442576,1730886660954,-500.0,0.00029041,2]
[341442577,1730886660964,-1382.73,0.00029041,2]
[341442578,1730886660973,-500.0,0.00029041,2]
[341442579,1730886660982,-500.0,0.00029041,2]
[341442580,1730886660992,-1804.41,0.00029041,2]
[341442581,1730886661001,-500.0,0.00029041,2]
[341442582,1730886661013,-794.58,0.00029041,2]
[341442583,1730886661023,-396.06641927,0.00029041,2]
[341442584,1730886661034,-538.45,0.00029041,2]
[341442585,1730886661044,-151.0,0.00029041,7]
[341442586,1730886661054,-500.0,0.00029041,2]
[341442587,1730886661063,-279.088266,0.00029041,7]
[341442588,1730886661073,-423.91375937,0.00029041,2]
[341442589,1730886661083,-500.0,0.00029041,2]
[341442590,1730886661092,-258.89133796,0.00029041,2]
[341442591,1730886661101,-500.0,0.00029041,2]
[341442592,1730886661112,-151.0,0.00029041,7]
[341442593,1730886661122,-500.0,0.00029041,2]
[341442594,1730886661131,-500.0,0.00029041,2]
[341442595,1730886661140,-500.0,0.00029041,2]
[341442596,1730886661149,-500.0,0.00029041,2]
[341442597,1730886661159,-500.0,0.00029041,2]
[341442598,1730886661168,-497.05008115,0.00029041,2]
[341442599,1730886661177,-500.0,0.00029041,2]
[341442600,1730886661187,-500.0,0.00029041,2]
[341442601,1730886661196,-500.0,0.00029041,2]
[341442602,1730886661206,-500.0,0.00029041,2]
[341442603,1730886661215,-500.0,0.00029041,2]
[341442604,1730886661224,-561.33,0.00029041,2]
[341442605,1730886661233,-275.52081605,0.00029041,2]
[341442606,1730886661242,-829.12,0.00029041,2]
[341442607,1730886661252,-500.0,0.00029041,2]
[341442608,1730886661262,-500.0,0.00029041,2]
[341442609,1730886661271,-1781.74,0.00029041,2]
[341442610,1730886661281,-981.02,0.00029041,2]
[341442611,1730886661289,-500.0,0.00029041,2]
[341442612,1730886661298,-500.0,0.00029041,2]
[341442613,1730886661307,-4780.83,0.00029041,2]
[341442614,1730886661316,-935.4,0.00029041,2]
[341442615,1730886661325,-1609.16,0.00029041,2]
[341442616,1730886661334,-500.0,0.00029041,2]
[341442617,1730886661343,-893.57,0.00029041,2]
[341442618,1730886661352,-500.0,0.00029041,2]
[341442619,1730886661361,-7260.87,0.00029041,2]
[341442620,1730886661370,-500.0,0.00029041,2]
[341442621,1730886661379,-500.0,0.00029041,2]
[341442622,1730886661388,-500.0,0.00029041,2]
[341442623,1730886661398,-14249.64,0.00029041,2]
[341442624,1730886661407,-506.7,0.00029041,2]
[341442625,1730886661416,-500.0,0.00029041,2]
[341442626,1730886661426,-2658.28,0.00029041,2]
[341442627,1730886661435,-500.0,0.00029041,2]
[341442628,1730886661444,-151.0,0.00029041,7]
[341442629,1730886661453,-2185.94,0.00029041,2]
[341442630,1730886661462,-892.73,0.00029041,2]
[341442631,1730886661472,-500.0,0.00029041,2]
[341442632,1730886661481,-500.0,0.00029041,2]
[341442633,1730886661490,-500.0,0.00029041,2]
[341442634,1730886661500,-500.0,0.00029041,2]
[341442635,1730886661512,-369.713338,0.00029041,7]
[341442636,1730886661522,-151.0,0.00029041,7]
[341442637,1730886661531,-500.0,0.00029041,2]
[341442638,1730886661541,-369.713338,0.00029041,7]
[341442639,1730886661550,-151.0,0.00029041,7]
[341442640,1730886661559,-500.0,0.00029041,2]
[341442641,1730886661568,-1185.63,0.00029041,2]
[341442642,1730886661578,-500.0,0.00029041,2]
[341442643,1730886661588,-500.0,0.00029041,2]
[341442644,1730886661598,-500.0,0.00029041,2]
[341442645,1730886661608,-500.0,0.00029041,2]
[341442646,1730886661618,-151.0,0.00029041,7]
[341442647,1730886661629,-151.0,0.00029041,7]
[341442648,1730886661638,-500.0,0.00029042,5]
[341442649,1730886661647,-1077.47330335,0.00029042,5]
[341442650,1730886661656,-1000.0,0.00029042,5]
[341442651,1730886661666,-1000.0,0.00029042,5]
[341442652,1730886661675,-500.0,0.00029042,5]
[341442653,1730886661684,-500.0,0.00029043,2]
[341442654,1730886661693,-500.0,0.00029043,2]
[341442655,1730886661720,-334.52559793,0.00029043,2]
[341442656,1730886661728,-151.0,0.00029043,7]
[341442657,1730886661738,-394.34697,0.00029043,7]
[341442658,1730886661750,-394.34697,0.00029043,7]
[341442659,1730886661760,-151.0,0.00029044,7]
[341442660,1730886661770,-207.738634,0.00029044,7]
[341442661,1730886661779,-267.789892,0.00029044,7]
[341442662,1730886661788,-151.0,0.00029044,7]
[341442663,1730886661797,-151.0,0.00029044,7]
[341442664,1730886661806,-500.0,0.00029308,2]
[341442665,1730886661815,-500.0,0.00029308,2]
[341442666,1730886661825,-500.0,0.00029308,2]
[341442667,1730886661834,-500.0,0.00029308,2]
[341442668,1730886661843,-455.01368085,0.00029308,2]
[341442669,1730886661853,-508.5625979,0.00029308,2]
[341442670,1730886661862,-500.0,0.00029308,2]
[341442672,1730886661871,-509.49766631,0.00029308,2]
[341442673,1730886661881,-151.0,0.00029308,7]
[341442674,1730886661891,-287.207185,0.00029308,7]
[341442675,1730886661899,-500.0,0.00029315,2]
[341442676,1730886661909,-500.0,0.00029315,2]
[341442677,1730886661919,-572.53,0.00029315,2]
[341442678,1730886661928,-500.0,0.00029315,2]
[341442679,1730886661938,-502.55,0.00029315,2]
[341442680,1730886661949,-500.0,0.00029315,2]
[341442681,1730886661960,-158.006423,0.00029315,7]
[341442682,1730886661970,-500.0,0.00029315,2]
[341442683,1730886661980,-568.45,0.00029315,2]
[341442684,1730886661990,-500.0,0.00029315,2]
[341442685,1730886661999,-500.0,0.00029315,2]
[341442686,1730886662010,-500.0,0.00029315,2]
[341442687,1730886662019,-151.0,0.00029315,7]
[341442688,1730886662029,-338.34,0.00029315,2]
[341442689,1730886662041,-151.0,0.00029315,3]
[341442690,1730886662050,-151.0,0.00029315,7]
[341442691,1730886662060,-500.0,0.00029315,2]
[341442692,1730886662070,-500.0,0.00029315,2]
[341442693,1730886662082,-500.0,0.00029315,2]
[341442694,1730886662093,-500.0,0.00029315,2]
[341442695,1730886662102,-500.0,0.00029315,2]
[341442696,1730886662114,-500.0,0.00029315,2]
[341442697,1730886662123,-500.0,0.00029315,2]
[341442698,1730886662133,-500.0,0.00029315,2]
[341442699,1730886662142,-517.14394288,0.00029315,2]
[341442700,1730886662152,-500.0,0.00029315,2]
[341442701,1730886662162,-500.0,0.00029315,2]
[341442702,1730886662171,-500.0,0.00029315,2]
[341442703,1730886662181,-500.0,0.00029315,2]
[341442704,1730886662191,-500.0,0.00029315,2]
[341442705,1730886662202,-500.0,0.00029315,2]
[341442706,1730886662211,-520.24728318,0.00029315,2]
[341442707,1730886662222,-500.0,0.00029315,2]
[341442708,1730886662231,-500.0,0.00029315,2]
[341442709,1730886662239,-504.14161972,0.00029315,2]
[341442710,1730886662249,-500.0,0.00029315,2]
[341442711,1730886662260,-500.0,0.00029315,2]
[341442712,1730886662269,-164.97836588,0.00029315,2]
[341442713,1730886662279,-500.0,0.00029315,2]
[341442714,1730886662288,-500.0,0.00029315,2]
[341442715,1730886662297,-500.0,0.00029315,2]
[341442716,1730886662306,-518.41957661,0.00029315,2]
[341442717,1730886662316,-500.0,0.00029315,2]
[341442718,1730886662325,-500.0,0.00029315,2]
[341442719,1730886662334,-500.0,0.00029315,2]
[341442720,1730886662344,-151.0,0.00029315,7]
[341442721,1730886662353,-500.0,0.00029315,2]
[341442722,1730886662362,-500.0,0.00029315,2]
[341442723,1730886662371,-500.0,0.00029315,2]
[341442724,1730886662381,-500.0,0.00029315,2]
[341442725,1730886662390,-500.0,0.00029315,2]
[341442726,1730886662400,-500.0,0.00029315,2]
[341442727,1730886662409,-500.0,0.00029315,2]
[341442728,1730886662418,-500.0,0.00029315,2]
[341442729,1730886662427,-500.0,0.00029315,2]
[341442730,1730886662436,-2060.64,0.00029315,2]
[341442731,1730886662445,-500.0,0.00029315,2]
[341442732,1730886662454,-500.0,0.00029315,2]
[341442733,1730886662463,-500.0,0.00029315,2]
[341442734,1730886662473,-1060.37,0.00029315,2]
[341442735,1730886662482,-936.89,0.00029315,2]
[341442736,1730886662491,-500.0,0.00029315,2]
[341442737,1730886662500,-500.0,0.00029315,2]
[341442738,1730886662512,-214.28,0.00029315,2]
[341442739,1730886662522,-1382.73,0.00029315,2]
[341442740,1730886662531,-500.0,0.00029315,2]
[341442741,1730886662540,-500.0,0.00029315,2]
[341442742,1730886662550,-1804.41,0.00029315,2]
[341442743,1730886662559,-500.0,0.00029315,2]
[341442744,1730886662569,-794.58,0.00029315,2]
[341442745,1730886662578,-538.45,0.00029315,2]
[341442746,1730886662588,-500.0,0.00029315,2]
[341442747,1730886662597,-500.0,0.00029315,2]
[341442748,1730886662607,-500.0,0.00029315,2]
[341442749,1730886662616,-500.0,0.00029315,2]
[341442750,1730886662625,-500.0,0.00029315,2]
[341442751,1730886662634,-500.0,0.00029315,2]
[341442752,1730886662644,-500.0,0.00029315,2]
[341442753,1730886662654,-500.0,0.00029315,2]
[341442754,1730886662664,-502.97266227,0.00029315,2]
[341442755,1730886662674,-500.0,0.00029315,2]
[341442756,1730886662683,-159.561131,0.00029315,7]
[341442757,1730886662694,-500.0,0.00029315,2]
[341442758,1730886662704,-159.561131,0.00029315,7]
[341442759,1730886662713,-500.0,0.00029315,2]
[341442760,1730886662723,-151.0,0.00029315,7]
[341442761,1730886662733,-500.0,0.00029315,2]
[341442762,1730886662742,-312.956188,0.00029315,7]
[341442763,1730886662752,-561.33,0.00029315,2]
[341442764,1730886662763,-312.956188,0.00029315,7]
[341442765,1730886662773,-829.12,0.00029315,2]
[341442766,1730886662783,-172.226629,0.00029315,7]
[341442767,1730886662793,-386.123943,0.00029315,7]
[341442768,1730886662803,-172.226629,0.00029315,7]
[341442769,1730886662812,-386.123943,0.00029315,7]
[341442770,1730886662822,-500.0,0.00029315,2]
[341442771,1730886662832,-151.0,0.00029315,7]
[341442772,1730886662841,-151.0,0.00029315,7]
[341442773,1730886662850,-500.0,0.00029315,2]
[341442774,1730886662860,-151.0,0.00029315,7]
[341442775,1730886662869,-1781.74,0.00029315,2]
[341442776,1730886662879,-981.02,0.00029315,2]
[341442777,1730886662888,-247.877805,0.00029315,7]
[341442778,1730886662897,-247.877805,0.00029315,7]
[341442779,1730886662906,-500.0,0.00029315,2]
[341442780,1730886662915,-500.0,0.00029315,2]
[341442781,1730886662925,-4780.83,0.00029315,2]
[341442782,1730886662935,-935.4,0.00029315,2]
[341442783,1730886662945,-1609.16,0.00029315,2]
[341442784,1730886662955,-500.0,0.00029315,2]
[341442785,1730886662964,-893.57,0.00029315,2]
[341442786,1730886662973,-500.0,0.00029315,2]
[341442787,1730886662983,-7260.87,0.00029315,2]
[341442788,1730886662992,-500.0,0.00029315,2]
[341442789,1730886663002,-500.0,0.00029315,2]
[341442790,1730886663016,-202.52750294,0.00029315,2]
[341442791,1730886663026,-14249.64,0.00029315,2]
[341442792,1730886663040,-506.7,0.00029315,2]
[341442793,1730886663050,-544.29606967,0.00029315,2]
[341442794,1730886663060,-2658.28,0.00029315,2]
[341442795,1730886663070,-500.0,0.00029315,2]
[341442796,1730886663081,-2185.94,0.00029315,2]
[341442797,1730886663091,-892.73,0.00029315,2]
[341442798,1730886663101,-387.98475007,0.00029315,2]
[341442799,1730886663111,-500.0,0.00029315,2]
[341442800,1730886663122,-500.0,0.00029315,2]
[341442801,1730886663132,-500.0,0.00029315,2]
[341442802,1730886663142,-472.025699,0.00029315,7]
[341442803,1730886663152,-244.68634492,0.00029315,2]
[341442804,1730886663162,-472.025699,0.00029315,7]
[341442805,1730886663172,-329.95,0.00029315,2]
[341442806,1730886663182,-1185.63,0.00029315,2]
[341442807,1730886663192,-455.84839592,0.00029315,2]
[341442808,1730886663202,-500.0,0.00029315,2]
[341442809,1730886663212,-500.0,0.00029315,2]
[341442810,1730886663222,-500.0,0.00029315,2]
[341442811,1730886663232,-151.0,0.00029318,7]
[341442812,1730886663242,-280.523123,0.00029318,7]
[341442813,1730886663365,-522.09985372,0.00029582,2]
[341442814,1730886663399,-504.58562343,0.00029582,2]
[341442815,1730886663408,-153.446363,0.00029582,7]
[341442816,1730886663419,-151.0,0.00029582,7]
[341442817,1730886663429,-151.0,0.00029582,7]
[341442818,1730886663438,-500.0,0.00029589,2]
[341442819,1730886663447,-61.22229752,0.00029589,2]
[341442822,1730886723868,1169.27083333,0.0002082,2]
[341442824,1730886744906,166.023656,0.00013973,2]
[341442826,1730886848030,11314.19359181,0.00034448,120]
[341442827,1730887020216,175.0,9e-05,2]
[341442830,1730887285307,326.8842975,0.00020756,2]
[341442831,1730887335830,1169.27083333,0.0002082,2]
[341442832,1730887393290,250.0,0.00020788,2]
[341442833,1730887425134,705.54508,0.00020788,2]
[341442834,1730887429309,3000.0,0.00020788,2]
[341442835,1730887534744,24900.0,0.00020753,2]
[341442836,1730887586049,2721.0,0.0002,2]
[341442860,1730887753730,166.023656,0.00013973,2]
[341442905,1730887838159,-1169.27083333,0.00020856,2]
[341442906,1730887838168,-186.059766,0.00020902,2]
[341442907,1730887838178,-1117.2664737,0.0002091,2]
[341442908,1730887838187,-746.820633,0.0002106,2]
[341442909,1730887838197,-1393.2255805,0.00021597,2]
[341442910,1730887838206,-746.820633,0.00021744,2]
[341442911,1730887838216,-175.289557,0.00021918,2]
[341442912,1730887838226,-300.0,0.00021996,2]
[341442913,1730887838237,-300.0,0.00021996,2]
[341442914,1730887838246,-5189.81318814,0.00021997,2]
[341442915,1730887838256,-502.37970684,0.00022073,2]
[341442916,1730887838265,-500.0,0.00022073,2]
[341442917,1730887838275,-500.0,0.00022073,2]
[341442918,1730887838284,-470.89987186,0.00022096,2]
[341442919,1730887838294,-339.62538858,0.00022096,2]
[341442920,1730887838307,-500.0,0.00022096,2]
[341442921,1730887838320,-500.0,0.00022096,2]
[341442922,1730887838330,-500.0,0.00022096,2]
[341442923,1730887838340,-500.0,0.00022096,2]
[341442924,1730887838350,-500.0,0.00022096,2]
[341442925,1730887838360,-500.0,0.00022096,2]
[341442926,1730887838370,-500.0,0.00022096,2]
[341442927,1730887838381,-33.69185183,0.00022096,2]
[341442928,1730887838397,-466.30814817,0.00022096,2]
[341442929,1730887838407,-282.32272876,0.00022096,2]
[341442930,1730887838415,-500.0,0.00022096,2]
[341442931,1730887838424,-500.0,0.00022096,2]
[341442932,1730887838436,-500.0,0.00022096,2]
[341442933,1730887838447,-500.0,0.00022096,2]
[341442934,1730887838461,-500.0,0.00022096,2]
[341442935,1730887838475,-500.0,0.00022096,2]
[341442936,1730887838485,-178.09065398,0.00022096,2]
[341442937,1730887838497,-321.90934602,0.00022096,2]
[341442938,1730887838507,-362.29822046,0.00022096,2]
[341442939,1730887838532,-137.70177954,0.00022096,2]
[341442940,1730887838544,-385.0,0.00022096,2]
[341442941,1730887838556,-500.0,0.00022096,2]
[341442942,1730887838565,-500.0,0.00022096,2]
[341442943,1730887838575,-500.0,0.00022096,2]
[341442944,1730887838584,-500.0,0.00022096,2]
[341442945,1730887838594,-500.0,0.00022096,2]
[341442946,1730887838603,-500.0,0.00022096,2]
[341442947,1730887838613,-500.0,0.00022096,2]
[341442948,1730887838623,-500.0,0.00022096,2]
[341442949,1730887838632,-500.0,0.00022096,2]
[341442950,1730887838642,-500.0,0.00022096,2]
[341442951,1730887838651,-500.0,0.00022096,2]
[341442952,1730887838661,-500.0,0.00022096,2]
[341442953,1730887838671,-783.77633359,0.00022097,2]
[341442954,1730887838680,-706.20514549,0.00022249,2]
[341442955,1730887838689,-508.0046926,0.00022425,2]
[341442956,1730887838699,-500.0,0.00022425,2]
[341442957,1730887838708,-433.48353229,0.00022425,2]
[341442958,1730887838717,-746.820633,0.00022429,2]
[341442959,1730887838726,-517.2206712,0.00023442,2]
[341442960,1730887838737,-1000.0,0.00023442,2]
[341442961,1730887838746,-1000.0,0.00023795,2]
[341442962,1730887838755,-420.0,0.00023902,2]
[341442963,1730887838765,-420.0,0.00024196,2]
[341442964,1730887838775,-175.289557,0.00024482,2]
[341442965,1730887838784,-500.0,0.00024658,2]
[341442966,1730887838794,-500.0,0.00024658,2]
[341442967,1730887838803,-500.0,0.00024658,2]
[341442968,1730887838814,-500.0,0.00024658,2]
[341442969,1730887838823,-500.0,0.00024658,2]
[341442970,1730887838831,-500.0,0.00024658,2]
[341442971,1730887838841,-500.0,0.00024658,2]
[341442972,1730887838850,-500.0,0.00024658,2]
[341442973,1730887838860,-500.0,0.00024658,2]
[341442974,1730887838869,-297.25318406,0.00024658,2]
[341442975,1730887838878,-5189.81318811,0.0002484,2]
[341442976,1730887838888,-587.0,0.00025974,2]
[341442977,1730887838898,-1500.0,0.000263,2]
[341442978,1730887838907,-587.0,0.00026615,2]
[341442979,1730887838917,-215.25333797,0.00027297,2]
[341442980,1730887838927,-150.583,0.000273,30]
[341442981,1730887838936,-418.10722219,0.00027396,2]
[341442982,1730887838946,-500.0,0.00027397,2]
[341442983,1730887838954,-500.0,0.00027397,2]
[341442984,1730887838963,-500.0,0.00027397,2]
[341442985,1730887838972,-500.0,0.00027397,2]
[341442986,1730887838982,-500.0,0.00027397,2]
[341442987,1730887838993,-506.78733619,0.00027397,2]
[341442988,1730887839002,-500.0,0.00027397,2]
[341442989,1730887839011,-530.10188665,0.00027397,2]
[341442990,1730887839020,-500.0,0.00027397,2]
[341442991,1730887839029,-500.0,0.00027397,2]
[341442992,1730887839039,-500.0,0.00027397,2]
[341442993,1730887839048,-576.10342839,0.00027397,2]
[341442994,1730887839057,-500.0,0.00027397,2]
[341442995,1730887839066,-538.18870807,0.00027397,2]
[341442996,1730887839076,-500.0,0.00027397,2]
[341442997,1730887839085,-525.33279834,0.00027397,2]
[341442998,1730887839094,-200.0,0.00027397,2]
[341442999,1730887839104,-519.26121529,0.00027397,2]
[341443000,1730887839114,-502.17285563,0.00027397,2]
[341443001,1730887839123,-508.9410394,0.00027397,2]
[341443002,1730887839132,-572.88979023,0.00027397,2]
[341443003,1730887839141,-500.0,0.00027397,2]
[341443004,1730887839150,-500.0,0.00027397,2]
[341443005,1730887839159,-500.0,0.00027397,2]
[341443006,1730887839170,-500.0,0.00027397,2]
[341443007,1730887839179,-500.0,0.00027397,2]
[341443008,1730887839188,-500.0,0.00027397,2]
[341443009,1730887839197,-500.0,0.00027397,2]
[341443010,1730887839207,-500.0,0.00027397,2]
[341443011,1730887839216,-500.0,0.00027397,2]
[341443012,1730887839225,-512.05323822,0.00027397,2]
[341443013,1730887839235,-500.0,0.00027397,2]
[341443014,1730887839245,-500.0,0.00027397,2]
[341443015,1730887839254,-500.0,0.00027397,2]
[341443016,1730887839264,-500.0,0.00027397,2]
[341443017,1730887839273,-500.0,0.00027397,2]
[341443018,1730887839282,-500.0,0.00027397,2]
[341443019,1730887839291,-500.0,0.00027397,2]
[341443020,1730887839300,-583.56754143,0.00027397,2]
[341443021,1730887839310,-506.9964651,0.00027397,2]
[341443022,1730887839319,-500.0,0.00027397,2]
[341443023,1730887839328,-500.0,0.00027397,2]
[341443024,1730887839337,-377.3557816,0.00027397,2]
[341443026,1730887839347,-211.62340562,0.00027397,2]
[341443066,1730887845963,-288.37659438,0.00027397,2]
[341443067,1730887845974,-278.00125161,0.00027397,2]
[341443068,1730887845983,-500.0,0.00027397,2]
[341443069,1730887845996,-500.0,0.00027397,2]
[341443070,1730887846006,-203.15266303,0.00027397,2]
[341443071,1730887846016,-648.62047108,0.00027397,2]
[341443072,1730887846027,-500.0,0.00027397,2]
[341443073,1730887846037,-523.64249045,0.00027397,2]
[341443074,1730887846164,-500.0,0.00027397,2]
[341443075,1730887846179,-500.0,0.00027397,2]
[341443076,1730887846189,-500.0,0.00027397,2]
[341443077,1730887846199,-500.0,0.00027397,2]
[341443078,1730887846208,-500.0,0.00027397,2]
[341443079,1730887846218,-500.0,0.00027397,2]
[341443080,1730887846228,-500.0,0.00027397,2]
[341443081,1730887846237,-500.0,0.00027397,2]
[341443082,1730887846250,-500.0,0.00027397,2]
[341443083,1730887846260,-500.0,0.00027397,2]
[341443084,1730887846270,-638.58814718,0.00027397,2]
[341443085,1730887846282,-821.03185282,0.00027397,2]
[341443086,1730887846293,-500.0,0.00027397,2]
[341443087,1730887846303,-500.0,0.00027397,2]
[341443088,1730887846312,-500.0,0.00027397,2]
[341443089,1730887846322,-342.44613492,0.00027397,2]
[341443090,1730887846334,-157.55386508,0.00027397,2]
[341443091,1730887846344,-500.0,0.00027397,2]
[341443092,1730887846354,-500.0,0.00027397,2]
[341443093,1730887846363,-500.0,0.00027397,2]
[341443094,1730887846373,-519.37018711,0.00027397,2]
[341443095,1730887846383,-500.0,0.00027397,2]
[341443096,1730887846395,-500.0,0.00027397,2]
[341443098,1730887846404,-500.0,0.00027397,2]
[341443099,1730887846414,-751.09,0.00027397,2]
[341443100,1730887846424,-500.0,0.00027397,2]
[341443101,1730887846434,-979.43,0.00027397,2]
[341443102,1730887846444,-1278.13,0.00027397,2]
[341443103,1730887846453,-500.0,0.00027397,2]
[341443104,1730887846463,-500.0,0.00027397,2]
[341443105,1730887846474,-200.0,0.00027397,2]
[341443106,1730887846483,-500.0,0.00027397,2]
[341443107,1730887846494,-500.0,0.00027397,2]
[341443108,1730887846504,-605.87775999,0.00027397,2]
[341443109,1730887846514,-183.94327187,0.00027397,2]
[341443110,1730887846523,-500.0,0.00027397,2]
[341443111,1730887846532,-500.0,0.00027397,2]
[341443112,1730887846542,-500.0,0.00027397,2]
[341443113,1730887846551,-500.0,0.00027397,2]
[341443114,1730887846562,-500.0,0.00027397,2]
[341443115,1730887846572,-500.0,0.00027397,2]
[341443116,1730887846581,-500.0,0.00027397,2]
[341443117,1730887846592,-500.0,0.00027397,2]
[341443118,1730887846601,-500.0,0.00027397,2]
[341443119,1730887846611,-500.0,0.00027397,2]
[341443120,1730887846621,-500.0,0.00027397,2]
[341443121,1730887846631,-500.0,0.00027397,2]
[341443122,1730887846639,-500.0,0.00027397,2]
[341443123,1730887846648,-500.0,0.00027397,2]
[341443124,1730887846658,-230.73,0.00027397,2]
[341443125,1730887846668,-556.59426393,0.00027397,2]
[341443126,1730887846678,-500.0,0.00027397,2]
[341443127,1730887846687,-500.0,0.00027397,2]
[341443128,1730887846696,-500.0,0.00027397,2]
[341443129,1730887846706,-500.0,0.00027397,2]
[341443130,1730887846715,-500.0,0.00027397,2]
[341443131,1730887846725,-500.0,0.00027397,2]
[341443132,1730887846734,-504.921614,0.00027397,2]
[341443133,1730887846746,-500.0,0.00027397,2]
[341443134,1730887846755,-500.0,0.00027397,2]
[341443135,1730887846765,-500.0,0.00027397,2]
[341443136,1730887846774,-663.63,0.00027397,2]
[341443137,1730887846783,-500.0,0.00027397,2]
[341443138,1730887846792,-500.0,0.00027397,2]
[341443139,1730887846802,-500.0,0.00027397,2]
[341443140,1730887846811,-506.42965363,0.00027397,2]